[Event "15th Kesan Open 2017"]
[Site "Kesan"]
[Date "2017.08.17"]
[Round "8.6"]
[White "Seyhanoglu, Deniz"]
[Black "Dimitrov, Atanas"]
[Result "1/2-1/2"]
[ECO "A25"]
[WhiteElo "2060"]
[BlackElo "2317"]
[Annotator "NA"]
[PlyCount "115"]
[EventCountry "TUR"]
[SourceTitle "playchess.com"]
[Source "ChessBase"]
[SourceQuality "1"]
[TimeControl "5400+30"]

1. c4 {[%emt 0:02:30]} e5 {[%emt 0:04:00]} 2. g3 {[%emt 0:01:30]} Nc6 {[%emt 0:06:30]} 3. Bg2 {[%emt 0:03:30]} f5 {[%emt 0:03:30]} 4. e3 {[%emt 0:05:30]} Nf6 {[%emt 0:00:30]} 5. Nc3 {[%emt 0:01:30]} Bb4 {[%emt 0:06:30]} 6. Nge2 {[%emt 0:01:30]} O-O {[%emt 0:01:30]} 7. O-O {[%emt 0:04:30]} d6 {[%emt 0:01:30]} 8. d3 {[%emt 0:01:30]} Qe8 {[%emt 0:05:30]} 9. a3 {[%emt 0:01:30]} Bxc3 {[%emt 0:05:30]} 10. Nxc3 {[%emt 0:00:30]} Bd7 $14 {[%emt 0:05:30]} 11. b4 {[%emt 0:01:30]} a6 {[%emt 0:00:00]} 12. Rb1 {[%emt 0:02:30]} Rb8 {[%emt 0:09:00]} 13. a4 {[%emt 0:01:30]} e4 {[%emt 0:03:30]} 14. dxe4 {[%emt 0:05:30]} fxe4 {[%emt 0:02:30]} 15. Nxe4 {[%emt 0:05:30]} Nxe4 {[%emt 0:00:30]} 16. Qd5+ {[%emt 0:00:30]} Kh8 {[%emt 0:03:30]} 17. Qxe4 {[%emt 0:01:30]} Ne5 {[%emt 0:00:30]} 18. Bb2 {[%emt 0:10:30]} Bf5 {[%emt 0:19:30]} 19. Qd4 {[%emt 0:01:30]} Bxb1 {[%emt 0:00:00]} 20. Rxb1 {[%emt 0:00:30]} Qg6 {[%emt 0:01:00]} 21. Be4 {[%emt 0:08:30]} Nf3+ {[%emt 0:00:30]} 22. Kg2 {[%emt 0:00:00]} Nxd4 {[%emt 0:00:30]} 23. Bxg6 {[%emt 0:04:00]} hxg6 {[%emt 0:05:01]} 24. Bxd4 {[%emt 0:00:30]} b6 {[%emt 0:00:36]} 25. Rd1 {[%emt 0:05:30]} Kg8 {[%emt 0:00:28]} 26. f4 {[%emt 0:02:30]} Rfd8 {[%emt 0:04:06]} 27. Kf3 {[%emt 0:01:30]} c5 {[%emt 0:00:50]} 28. Bc3 {[%emt 0:00:30]} Rbc8 {[%emt 0:06:06]} 29. b5 {[%emt 0:00:30]} axb5 {[%emt 0:00:09]} 30. axb5 {[%emt 0:00:30]} Ra8 {[%emt 0:00:25]} 31. Ke4 {[%emt 0:01:30]} Ra3 {[%emt 0:01:56]} 32. Be5 {[%emt 0:06:49]} Kf7 {[%emt 0:02:41]} 33. Rxd6 {[%emt 0:00:49]} Rxd6 {[%emt 0:00:30]} 34. Bxd6 {[%emt 0:00:01]} Ke6 {[%emt 0:00:00]} 35. Bc7 {[%emt 0:00:30]} Rc3 {[%emt 0:00:01]} 36. Bxb6 {[%emt 0:00:46]} Rxc4+ {[%emt 0:00:01]} 37. Kd3 {[%emt 0:00:00]} Rc1 {[%emt 0:03:32]} 38. Kd2 {[%emt 0:01:23]} Rc4 {[%emt 0:00:30]} 39. Kd3 {[%emt 0:00:00]} Rc1 {[%emt 0:00:00]} 40. Bc7 {[%emt 0:03:45]} Rb1 {[%emt 0:00:00]} 41. b6 {[%emt 0:01:01]} Kd5 {[%emt 0:00:00]} 42. e4+ {[%emt 0:00:39]} Kc6 {[%emt 0:00:01]} 43. e5 {[%emt 0:01:19]} Kd5 {[%emt 0:00:13]} 44. g4 {[%emt 0:00:26]} Kc6 {[%emt 0:03:06]} 45. e6 {[%emt 0:01:52]} Re1 {[%emt 0:00:16]} 46. Be5 {[%emt 0:00:59]} Rb1 {[%emt 0:00:33]} 47. Bxg7 {[%emt 0:02:41]} Rxb6 {[%emt 0:00:29]} 48. f5 {[%emt 0:01:20]} gxf5 {[%emt 0:00:47]} 49. gxf5 {[%emt 0:00:02]} Kd6 {[%emt 0:00:37]} 50. h4 {[%emt 0:04:59]} Rb4 {[%emt 0:00:27]} 51. h5 {[%emt 0:01:00]} Ke7 {[%emt 0:00:30]} 52. h6 {[%emt 0:01:21]} Rh4 {[%emt 0:00:02]} 53. Kc3 {[%emt 0:00:00]} Rh5 {[%emt 0:00:52]} 54. Kc4 {[%emt 0:02:26]} Rxf5 {[%emt 0:00:01]} 55. h7 {[%emt 0:00:19]} Rh5 {[%emt 0:00:02]} 56. h8=Q {[%emt 0:00:06]} Rxh8 {[%emt 0:00:05]} 57. Bxh8 {[%emt 0:00:05]} Kxe6 {[%emt 0:00:02]} 58. Kxc5 {[%emt 0:00:00]} 1/2-1/2

[Event "15th Kesan Open 2017"]
[Site "Kesan"]
[Date "2017.08.17"]
[Round "8.7"]
[White "Onem, Uzay Altay"]
[Black "Annaberdiyev, Babageldi"]
[Result "0-1"]
[ECO "A44"]
[WhiteElo "1880"]
[BlackElo "2223"]
[Annotator "NA"]
[PlyCount "108"]
[EventCountry "TUR"]
[SourceTitle "playchess.com"]
[Source "ChessBase"]
[SourceQuality "1"]
[TimeControl "5400+30"]

1. d4 {[%emt 0:00:30]} c5 {[%emt 0:01:00]} 2. d5 {[%emt 0:00:30]} e5 {[%emt 0:00:30]} 3. e4 {[%emt 0:00:30]} d6 {[%emt 0:00:30]} 4. c4 {[%emt 0:01:30]} Be7 {[%emt 0:00:30]} 5. Nc3 {[%emt 0:00:30]} a6 {[%emt 0:00:30]} 6. g3 {[%emt 0:03:30] A44: Semi-Benoni} (6. a4 Bg5 7. Bxg5 Qxg5 {½-½ (7) Skytte,R (2406)-Rusev,K (2549) Copenhagen 2012}) 6... Bg5 {[%emt 0:02:30]} 7. Bxg5 {[%emt 0:01:30]} Qxg5 {[%emt 0:00:30]} 8. h4 {[%emt 0:00:30]} Qe7 {[%emt 0:00:30]} 9. Bh3 {[%emt 0:00:30]} Nd7 {[%emt 0:00:30]} 10. Qd3 $146 {[%emt 0:01:30]} ({Predecessor:} 10. Nf3 Ngf6 11. h5 Qf8 12. Qd2 Rb8 13. a4 b6 14. Ke2 g6 {1-0 (60) Milchev,N (2213)-Cebrian Ramos,J (2102) Vilagarcia de Arousa 2006}) 10... Ngf6 {[%emt 0:00:30]} 11. Nge2 {[%emt 0:01:30]} Rb8 {[%emt 0:01:30]} 12. a4 {[%emt 0:00:30]} O-O {[%emt 0:00:30]} 13. Kf1 {[%emt 0:01:30]} Re8 {[%emt 0:01:30]} 14. Kg2 {[%emt 0:01:30]} b6 {[%emt 0:02:30]} 15. f3 {[%emt 0:03:30]} Nf8 {[%emt 0:03:30]} 16. Bxc8 {[%emt 0:00:30]} Rexc8 {[%emt 0:00:30]} 17. f4 {[%emt 0:02:30]} exf4 {[%emt 0:00:30]} 18. gxf4 {[%emt 0:00:30]} h5 {[%emt 0:06:30]} 19. Ng3 {[%emt 0:01:30]} g6 {[%emt 0:00:30]} 20. Rae1 {[%emt 0:00:30]} Ng4 {[%emt 0:01:30]} 21. e5 {[%emt 0:15:30]} dxe5 {[%emt 0:02:30]} 22. f5 {[%emt 0:00:00]} Qf6 {[%emt 0:04:30]} 23. Nce4 {[%emt 0:01:00]} Qg7 {[%emt 0:00:00]} 24. Ref1 $11 {[%emt 0:02:30]} (24. Rhf1 $14) 24... Nd7 {[%emt 0:00:00]} 25. Qf3 {[%emt 0:03:30]} b5 {[%emt 0:00:30]} 26. f6 {[%emt 0:00:30]} Qh6 {[%emt 0:01:30]} 27. axb5 {[%emt 0:03:30]} axb5 {[%emt 0:00:00]} 28. Nd6 {[%emt 0:00:30]} Rf8 {[%emt 0:02:00]} 29. Nxb5 {[%emt 0:01:30]} Ndxf6 {[%emt 0:00:30]} 30. Kh3 {[%emt 0:00:30]} e4 {[%emt 0:00:30]} 31. Nxe4 {[%emt 0:01:30]} Nxe4 {[%emt 0:00:30]} 32. Qxe4 {[%emt 0:00:00]} Rbe8 {[%emt 0:02:30]} 33. Qf4 {[%emt 0:02:00]} Re3+ {[%emt 0:01:30]} 34. Kg2 {[%emt 0:00:00]} Qg7 {[%emt 0:00:00]} 35. Nc3 {[%emt 0:01:00]} Rfe8 {[%emt 0:00:00]} 36. Rh3 {[%emt 0:00:30]} R3e5 {[%emt 0:02:30]} 37. Rhf3 {[%emt 0:00:30]} Ne3+ {[%emt 0:01:30]} 38. Rxe3 {[%emt 0:04:30]} Rxe3 {[%emt 0:00:00]} 39. d6 {[%emt 0:00:00]} Rd3 {[%emt 0:03:00]} 40. Ne4 {[%emt 0:02:00]} f5 {[%emt 0:00:30]} 41. Nxc5 {[%emt 0:00:30]} Rd4 {[%emt 0:01:30]} 42. d7 {[%emt 0:01:30]} Re2+ {[%emt 0:00:30]} 43. Rf2 {[%emt 0:01:30]} Rxf2+ {[%emt 0:02:30]} 44. Qxf2 {[%emt 0:00:00]} Qe5 {[%emt 0:00:30]} 45. Qf3 {[%emt 0:02:00]} Qxc5 {[%emt 0:00:00]} 46. Qa8+ {[%emt 0:00:30]} Qf8 {[%emt 0:00:00]} 47. Qe8 {[%emt 0:00:30]} Kg7 {[%emt 0:02:30]} 48. c5 {[%emt 0:01:30]} Rd2+ {[%emt 0:08:30]} 49. Kh3 {[%emt 0:02:30]} Rd3+ {[%emt 0:00:00]} 50. Kg2 {[%emt 0:00:00]} Qf6 {[%emt 0:00:00]} 51. Kf1 {[%emt 0:01:00]} f4 {[%emt 0:02:30]} 52. c6 {[%emt 0:00:30]} Rd1+ {[%emt 0:09:30]} 53. Ke2 {[%emt 0:01:30]} Qd6 {[%emt 0:00:30]} 54. Qe4 {[%emt 0:02:30]} Qd2+ {[%emt 0:00:00]} 0-1

[Event "15th Kesan Open 2017"]
[Site "Kesan"]
[Date "2017.08.17"]
[Round "8.8"]
[White "Tereladze, Sopiko"]
[Black "Korkmaz, Turhan"]
[Result "1-0"]
[ECO "B06"]
[WhiteElo "2172"]
[BlackElo "1867"]
[Annotator "NA"]
[PlyCount "81"]
[EventCountry "TUR"]
[SourceTitle "playchess.com"]
[Source "ChessBase"]
[SourceQuality "1"]
[TimeControl "5400+30"]

1. d4 {[%emt 0:00:30]} d6 {[%emt 0:01:00]} 2. e4 {[%emt 0:02:30]} g6 {[%emt 0:01:30]} 3. Nc3 {[%emt 0:00:30]} Bg7 {[%emt 0:00:30]} 4. Bg5 {[%emt 0:01:30]} Nd7 {[%emt 0:01:30]} 5. Qd2 {[%emt 0:00:30]} c5 {[%emt 0:01:30]} 6. Nf3 {[%emt 0:00:30]} a6 {[%emt 0:02:30]} 7. a4 {[%emt 0:07:30]} Qb6 {[%emt 0:00:30]} 8. Be2 {[%emt 0:00:30]} e6 {[%emt 0:03:30]} 9. a5 {[%emt 0:15:30]} Qc7 {[%emt 0:04:30]} 10. O-O {[%emt 0:01:30]} h6 {[%emt 0:01:30]} 11. Be3 {[%emt 0:00:30]} Ne7 {[%emt 0:00:00]} 12. Rfd1 {[%emt 0:02:30]} g5 $18 {[%emt 0:06:00]} 13. h4 {[%emt 0:11:30]} g4 {[%emt 0:04:30]} 14. Nh2 {[%emt 0:00:30]} h5 {[%emt 0:00:30]} 15. f3 {[%emt 0:00:30]} g3 {[%emt 0:01:30]} 16. Nf1 {[%emt 0:00:30]} Ng6 {[%emt 0:00:30]} 17. Nxg3 {[%emt 0:00:30]} Nxh4 {[%emt 0:06:30]} 18. dxc5 {[%emt 0:02:30]} dxc5 {[%emt 0:00:30]} 19. f4 {[%emt 0:00:30]} Rg8 {[%emt 0:01:30]} 20. Kh2 {[%emt 0:03:30]} Nxg2 {[%emt 0:00:30]} 21. Kxg2 {[%emt 0:05:30]} h4 {[%emt 0:02:30]} 22. Rg1 {[%emt 0:00:30]} hxg3 {[%emt 0:00:30]} 23. Kf3 {[%emt 0:02:30]} Nf6 {[%emt 0:03:30]} 24. Rxg3 {[%emt 0:02:30]} Bd7 {[%emt 0:00:30]} 25. Rag1 {[%emt 0:01:30]} Kf8 {[%emt 0:03:30]} 26. Rg5 {[%emt 0:05:30]} Bc6 {[%emt 0:14:30]} 27. Bxc5+ {[%emt 0:00:30]} Ke8 {[%emt 0:00:00]} 28. Rxg7 {[%emt 0:02:30]} Rh8 {[%emt 0:04:00]} 29. Qd6 {[%emt 0:00:30]} Qxd6 {[%emt 0:02:30]} 30. Bxd6 {[%emt 0:00:30]} Rd8 {[%emt 0:00:30]} 31. Be5 {[%emt 0:00:30]} Ke7 {[%emt 0:00:30]} 32. Bxf6+ {[%emt 0:00:30]} Kxf6 {[%emt 0:00:30]} 33. Bd3 {[%emt 0:00:30]} Rh5 {[%emt 0:03:30]} 34. R7g5 {[%emt 0:00:30]} Rh3+ {[%emt 0:00:30]} 35. R5g3 {[%emt 0:00:30]} Rh5 {[%emt 0:00:30]} 36. Rg5 {[%emt 0:00:30]} Rh3+ {[%emt 0:00:00]} 37. R1g3 {[%emt 0:00:30]} Rh1 {[%emt 0:00:00]} 38. Ke2 {[%emt 0:00:00]} Ke7 {[%emt 0:00:30]} 39. f5 {[%emt 0:01:00]} Kf6 {[%emt 0:03:30]} 40. fxe6 {[%emt 0:01:30]} Kxe6 {[%emt 0:00:30]} 41. Bc4+ {[%emt 0:00:30]} 1-0

[Event "15th Kesan Open 2017"]
[Site "Kesan"]
[Date "2017.08.17"]
[Round "8.9"]
[White "Hajiyev, Shahin"]
[Black "Grigoriev, Armen"]
[Result "0-1"]
[ECO "A32"]
[WhiteElo "2006"]
[BlackElo "2160"]
[Annotator "NA"]
[PlyCount "132"]
[EventCountry "TUR"]
[SourceTitle "playchess.com"]
[Source "ChessBase"]
[SourceQuality "1"]
[TimeControl "5400+30"]

1. d4 {[%emt 0:00:30]} Nf6 {[%emt 0:01:00]} 2. c4 {[%emt 0:00:30]} e6 {[%emt 0:00:30]} 3. g3 {[%emt 0:00:30]} c5 {[%emt 0:00:30]} 4. Nf3 {[%emt 0:02:30]} cxd4 {[%emt 0:00:00]} 5. Nxd4 {[%emt 0:00:30]} Bb4+ {[%emt 0:00:00]} 6. Bd2 {[%emt 0:00:30]} Bc5 {[%emt 0:00:30]} 7. Nb3 {[%emt 0:03:30]} Be7 {[%emt 0:00:30]} 8. Bg2 {[%emt 0:00:30]} d6 {[%emt 0:01:30]} 9. Nc3 {[%emt 0:10:30]} O-O {[%emt 0:00:30]} 10. O-O {[%emt 0:02:30]} Nbd7 {[%emt 0:02:30]} 11. Nb5 {[%emt 0:07:30]} Ne5 {[%emt 0:05:30]} 12. Rc1 {[%emt 0:03:30]} Qd7 {[%emt 0:10:30]} 13. Na3 {[%emt 0:11:30]} Nc6 {[%emt 0:09:30]} 14. e4 {[%emt 0:07:30]} Rd8 {[%emt 0:06:30]} 15. Qe2 {[%emt 0:00:30]} a6 {[%emt 0:05:30]} 16. Rfd1 {[%emt 0:01:30]} Qc7 {[%emt 0:00:30]} 17. Be3 {[%emt 0:01:30]} Bd7 {[%emt 0:04:30]} 18. Nb1 {[%emt 0:03:30]} Ne5 {[%emt 0:05:30]} 19. Nd4 {[%emt 0:01:30]} Rac8 {[%emt 0:06:30]} 20. h3 {[%emt 0:01:30]} Be8 {[%emt 0:02:30]} 21. b3 {[%emt 0:00:30]} Qb8 {[%emt 0:01:30]} 22. Nc3 {[%emt 0:03:30]} Nc6 {[%emt 0:07:30]} 23. a4 {[%emt 0:05:30]} Nd7 {[%emt 0:03:30]} 24. Qa2 {[%emt 0:10:37]} Nb4 {[%emt 0:02:30]} 25. Qb1 {[%emt 0:00:23]} Bf6 {[%emt 0:01:30]} 26. Na2 {[%emt 0:01:50]} Nc6 {[%emt 0:00:30]} 27. b4 {[%emt 0:01:23]} Nxd4 {[%emt 0:02:30]} 28. Bxd4 {[%emt 0:00:03]} Bxd4 {[%emt 0:01:59]} 29. Rxd4 {[%emt 0:00:01]} e5 {[%emt 0:00:00]} 30. Rdd1 {[%emt 0:00:44]} Nb6 {[%emt 0:00:14]} 31. a5 {[%emt 0:02:01]} Nxc4 {[%emt 0:00:54]} 32. Qb3 {[%emt 0:01:34]} b5 {[%emt 0:01:00]} 33. Bf1 {[%emt 0:01:22]} f5 {[%emt 0:05:32]} 34. exf5 {[%emt 0:05:40]} Bf7 {[%emt 0:00:59]} 35. Qb1 {[%emt 0:02:16]} d5 {[%emt 0:02:43]} 36. Nc3 {[%emt 0:00:06]} Rd6 {[%emt 0:00:47]} 37. Bg2 {[%emt 0:00:59]} Rcd8 {[%emt 0:00:13]} 38. Rd3 {[%emt 0:01:09]} g6 {[%emt 0:03:06]} 39. Rcd1 {[%emt 0:01:14]} e4 {[%emt 0:00:43]} 40. fxg6 {[%emt 0:00:32]} hxg6 {[%emt 0:02:02]} 41. Rd4 {[%emt 0:00:15]} Qc8 {[%emt 0:00:26]} 42. Ne2 {[%emt 0:01:49]} Qf5 {[%emt 0:00:27]} 43. h4 {[%emt 0:00:27]} Qe5 {[%emt 0:00:59]} 44. Qc1 {[%emt 0:00:40]} Kg7 {[%emt 0:00:20]} 45. Qf4 {[%emt 0:01:15]} Qxf4 {[%emt 0:00:44]} 46. Nxf4 {[%emt 0:00:01]} Kf6 {[%emt 0:00:17]} 47. Kf1 {[%emt 0:00:32]} Ke7 {[%emt 0:00:13]} 48. Ke1 {[%emt 0:01:28]} Ne5 {[%emt 0:00:18]} 49. Rb1 {[%emt 0:00:45]} Rc8 {[%emt 0:00:48]} 50. Rdd1 {[%emt 0:00:30]} Rc4 {[%emt 0:00:17]} 51. Rdc1 {[%emt 0:00:33]} Rdc6 {[%emt 0:01:13]} 52. Rxc4 {[%emt 0:00:45]} Rxc4 {[%emt 0:00:18]} 53. Kd2 {[%emt 0:00:29]} Nc6 {[%emt 0:00:15]} 54. Bf1 {[%emt 0:01:56]} Rxb4 {[%emt 0:00:30]} 55. Rxb4 {[%emt 0:00:00]} Nxb4 {[%emt 0:00:00]} 56. Bh3 {[%emt 0:00:15]} Nc6 {[%emt 0:03:25]} 57. Bc8 {[%emt 0:00:10]} Nxa5 {[%emt 0:00:11]} 58. Bxa6 {[%emt 0:00:07]} b4 {[%emt 0:00:08]} 59. Be2 {[%emt 0:02:34]} d4 {[%emt 0:00:23]} 60. f3 {[%emt 0:00:28]} d3 {[%emt 0:00:00]} 61. Nxd3 {[%emt 0:00:45]} Nc4+ {[%emt 0:02:21]} 62. Kc2 {[%emt 0:00:57]} exd3+ {[%emt 0:00:53]} 63. Bxd3 {[%emt 0:00:03]} Ne5 {[%emt 0:00:00]} 64. Be4 {[%emt 0:00:28]} Kd6 {[%emt 0:00:00]} 65. f4 {[%emt 0:00:26]} Ng4 {[%emt 0:00:01]} 66. f5 {[%emt 0:00:16]} gxf5 {[%emt 0:00:08]} 0-1

[Event "15th Kesan Open 2017"]
[Site "Kesan"]
[Date "2017.08.17"]
[Round "8.10"]
[White "Ozkan, Hakan"]
[Black "Aliyev, Elnur"]
[Result "0-1"]
[ECO "B23"]
[WhiteElo "1794"]
[BlackElo "2150"]
[Annotator "NA"]
[PlyCount "138"]
[EventCountry "TUR"]
[SourceTitle "playchess.com"]
[Source "ChessBase"]
[SourceQuality "1"]
[TimeControl "5400+30"]

1. e4 {[%emt 0:00:30]} c5 {[%emt 0:01:00]} 2. Nc3 {[%emt 0:00:30]} Nc6 {[%emt 0:00:30]} 3. f4 {[%emt 0:00:30]} g6 {[%emt 0:00:30]} 4. Nf3 {[%emt 0:00:30]} Bg7 {[%emt 0:00:30]} 5. Bb5 {[%emt 0:00:30]} Na5 {[%emt 0:00:30]} 6. O-O {[%emt 0:08:30]} a6 {[%emt 0:07:30]} 7. Be2 {[%emt 0:00:30]} b5 {[%emt 0:02:30]} 8. d3 {[%emt 0:04:30]} d6 {[%emt 0:04:30]} 9. Be3 {[%emt 0:02:30]} Nf6 {[%emt 0:03:30]} 10. h3 {[%emt 0:03:30]} Bb7 {[%emt 0:00:00]} 11. Rb1 {[%emt 0:04:30]} O-O {[%emt 0:07:00]} 12. Nd2 {[%emt 0:01:30]} Rc8 {[%emt 0:14:30]} 13. Bf3 {[%emt 0:03:30]} Nd7 {[%emt 0:03:30]} 14. Qe1 {[%emt 0:04:30]} Nc6 {[%emt 0:01:30]} 15. Ne2 {[%emt 0:08:30]} Nd4 {[%emt 0:05:30]} 16. c3 {[%emt 0:04:30]} Nc2 {[%emt 0:00:30]} 17. Qf2 {[%emt 0:02:30]} Nb6 {[%emt 0:06:30]} 18. Rbc1 {[%emt 0:03:30]} Nxe3 {[%emt 0:04:30]} 19. Qxe3 {[%emt 0:00:00]} e5 {[%emt 0:05:30]} 20. f5 {[%emt 0:06:00]} Qh4 {[%emt 0:02:30]} 21. Qf2 {[%emt 0:03:30]} Qxf2+ {[%emt 0:00:30]} 22. Kxf2 {[%emt 0:00:30]} gxf5 {[%emt 0:01:30]} 23. exf5 {[%emt 0:01:30]} d5 {[%emt 0:00:30]} 24. g4 {[%emt 0:00:30]} Kh8 {[%emt 0:03:30]} 25. h4 {[%emt 0:04:30]} f6 {[%emt 0:02:30]} 26. Rg1 {[%emt 0:03:30]} a5 {[%emt 0:00:30]} 27. Ng3 {[%emt 0:01:30]} Bh6 {[%emt 0:01:30]} 28. Rc2 {[%emt 0:00:30]} c4 {[%emt 0:00:30]} 29. dxc4 {[%emt 0:04:30]} e4 {[%emt 0:01:30]} 30. Ngxe4 {[%emt 0:01:30]} dxe4 {[%emt 0:00:30]} 31. Bxe4 {[%emt 0:04:41]} Bxe4 {[%emt 0:07:20]} 32. Nxe4 {[%emt 0:00:30]} Nxc4 {[%emt 0:00:30]} 33. Re2 {[%emt 0:00:30]} Rcd8 {[%emt 0:00:30]} 34. Nc5 {[%emt 0:00:30]} Rd5 {[%emt 0:00:30]} 35. Ne6 {[%emt 0:00:30]} Rb8 {[%emt 0:00:30]} 36. b3 {[%emt 0:00:30]} Ne5 {[%emt 0:00:30]} 37. g5 {[%emt 0:00:30]} Bg7 {[%emt 0:00:30]} 38. Ke3 {[%emt 0:00:30]} Nf7 {[%emt 0:05:25]} 39. Kf4 {[%emt 0:00:38]} fxg5+ {[%emt 0:03:03]} 40. hxg5 {[%emt 0:00:12]} Bxc3 {[%emt 0:00:26]} 41. g6 {[%emt 0:00:40]} Nd6 {[%emt 0:00:58]} 42. Rh1 {[%emt 0:02:35]} Rxf5+ {[%emt 0:01:20]} 43. Kg4 {[%emt 0:00:01]} h5+ {[%emt 0:00:00]} 44. Rxh5+ {[%emt 0:00:16]} Rxh5 {[%emt 0:00:07]} 45. Kxh5 {[%emt 0:00:09]} Re8 {[%emt 0:00:22]} 46. Rc2 {[%emt 0:02:23]} b4 {[%emt 0:02:24]} 47. Ng5 {[%emt 0:02:26]} Ne4 {[%emt 0:00:37]} 48. Nf7+ {[%emt 0:02:43]} Kg7 {[%emt 0:00:13]} 49. Rg2 {[%emt 0:00:46]} Nf6+ {[%emt 0:00:22]} 50. Kg5 {[%emt 0:00:25]} Re1 {[%emt 0:01:06]} 51. Kf5 {[%emt 0:01:35]} Rd1 {[%emt 0:02:16]} 52. Ke6 {[%emt 0:00:55]} Nd5 {[%emt 0:00:28]} 53. Rg4 {[%emt 0:00:44]} Nc7+ {[%emt 0:00:10]} 54. Kf5 {[%emt 0:00:24]} Rd5+ {[%emt 0:00:24]} 55. Ke4 {[%emt 0:00:27]} Rd4+ {[%emt 0:00:16]} 56. Kf5 {[%emt 0:00:31]} Rd5+ {[%emt 0:01:29]} 57. Ke4 {[%emt 0:00:23]} Rd2 {[%emt 0:00:22]} 58. Ng5 {[%emt 0:00:36]} Rxa2 {[%emt 0:01:00]} 59. Kd3 {[%emt 0:00:01]} Rf2 {[%emt 0:00:38]} 60. Kc4 {[%emt 0:00:20]} Rf5 {[%emt 0:00:20]} 61. Ne4 {[%emt 0:00:42]} Ne6 {[%emt 0:00:28]} 62. Rg2 {[%emt 0:01:47]} Rf4 {[%emt 0:00:17]} 63. Kd5 {[%emt 0:00:30]} Nc7+ {[%emt 0:00:12]} 64. Kc6 {[%emt 0:00:19]} Rxe4 {[%emt 0:00:27]} 65. Kxc7 {[%emt 0:00:02]} a4 {[%emt 0:01:03]} 66. Kc6 {[%emt 0:01:18]} axb3 {[%emt 0:00:11]} 67. Kd5 {[%emt 0:00:07]} Rd4+ {[%emt 0:00:07]} 68. Kc5 {[%emt 0:00:15]} b2 {[%emt 0:00:18]} 69. Rg1 {[%emt 0:00:05]} Re4 {[%emt 0:00:16]} 0-1